Cogmind - Beta 16.1 @@@ ROGUE MODE // 2026.02.17 @ 19:06:10 Player: Drago Result: Destroyed by XE-XG5(R) with Subdweller Machine Gun Performance ------------- Evolutions (0) 0 Regions Visited (2) 400 Robots Destroyed (19) 95 Value Destroyed (426) 426 Prototype IDs (13) 260 Alien Tech Used (0) 0 Bonus (0) 0 TOTAL SCORE: 1181 Bonus ------- None Cogmind --------- Core Integrity 0/250 Matter 192/300 Energy 195/200 System Corruption 0% Temperature Cool (0) Movement Treading (160) Location -10/Subcaves Parts ------- > --- POWER (1) -------- Subdweller Power Source > --- PROPULSION (2) --- Light Treads Light Treads > --- UTILITY (2) ------ Large Storage Unit Makeshift Light Armor Plating > --- WEAPON (2) ------- Subdweller Laser Makeshift Axe > --- INVENTORY (15) --- Subdweller Power Source Light Treads Subdweller Monowheel Subdweller Monowheel Flight Unit Flight Unit Flight Unit High-capacity Matter Pod (200) Subdweller Optics Seismic Detector Gun Armor Battle Rifle Mining Laser Multitool Piercing Trap Peak State ------------ > --- POWER ------------ Subdweller Power Source > --- PROPULSION ------- Light Treads Light Treads > --- UTILITY ---------- Large Storage Unit Makeshift Light Armor Plating > --- WEAPON ----------- Subdweller Laser Makeshift Axe > --- INVENTORY -------- Light Treads Subdweller Monowheel Subdweller Monowheel Flight Unit Flight Unit Flight Unit High-capacity Matter Pod Subdweller Optics Seismic Detector Gun Armor Battle Rifle Mining Laser Multitool Piercing Trap [Rating: 17] Favorites ----------- Power Ion Engine Engine Ion Engine Propulsion Light Treads Treads Light Treads Wheel Wheel Utility Large Storage Unit Device Seismic Detector Storage Large Storage Unit Protection Makeshift Light Armor Plating Weapon Light Assault Rifle Energy Gun Subdweller Laser Energy Cannon Beam Cannon Ballistic Gun Light Assault Rifle Ballistic Cannon Battle Cannon Special Weapon Mining Laser Slashing Weapon Makeshift Axe Build | -11 -10 -10 ------- Run | Yrd Mat Sub Slots Evolved . | . . . Power . | . . . Propulsion . | . . . Utility . | . . . Weapon . | . . . Parts Attached 29 | 7 6 16 Power 4 | 1 . 3 Engine 4 | 1 . 3 Core . | . . . Reactor . | . . . Propulsion 9 | 2 3 4 Treads 5 | 1 2 2 Leg . | . . . Wheel 4 | 1 1 2 Hover . | . . . Flight . | . . . Utility 4 | 2 1 1 Device 1 | 1 . . Storage 2 | 1 1 . Processor . | . . . Hackware . | . . . Protection 1 | . . 1 Artifact . | . . . Weapon 12 | 2 2 8 Energy Gun 2 | . . 2 Energy Cannon 1 | . . 1 Ballistic Gun 6 | 2 1 3 Ballistic Cannon 1 | . . 1 Launcher . | . . . Special Weapon 1 | . 1 . Impact Weapon . | . . . Slashing Weapon 1 | . . 1 Piercing Weapon . | . . . Special Melee Weapon . | . . . Unidentified Prototypes . | . . . Parts Lost 10 | . . 10 Power 2 | . . 2 Propulsion 2 | . . 2 Utility . | . . . Weapon 6 | . . 6 Highest Loss Streak 3 | . . 3 To Critical Strikes . | . . . Average Backups 12 | 2 10 14 Power . | . 1 . Propulsion 6 | 1 5 7 Utility 2 | . . 3 Weapon 2 | 1 2 1 Tool/Special . | . . . Unused Backups 12 | . 1 11 Power 1 | . . 1 Propulsion 5 | . . 5 Utility 4 | . 1 3 Weapon 1 | . . 1 Tool/Special 1 | . . 1 Average Slot Usage (%) 95 | . 99 94 Engine 10 | . 14 9 Treads 20 | . 14 21 Wheel 7 | . 13 6 Device 7 | . 14 5 Storage 14 | . 14 14 Protection 6 | . . 8 Energy Gun 4 | . . 6 Energy Cannon 1 | . . 2 Ballistic Gun 12 | . 27 8 Ballistic Cannon 4 | . . 5 Slashing Weapon 3 | . . 4 Peak Build Rating 17 | 7 8 17 Average Rating 11 | 5 7 12 On Entrance 5 | . 7 8 Avg Prop Armor Cover (%) 12 | 14 12 11 Naked Turns . | . . . Heaviest Build 37 | 13 28 37 Greatest Support 40 | 16 20 40 Greatest Overweight (x) 3 | . 2 3 Average Overweight (x) 1 | . 1 . Largest Inventory Capacity 15 | 8 15 15 Average Capacity 14 | 7 13 15 Most Carried 15 | 5 12 15 Average Carried 13 | 3 10 14 Final Capacity 15 | 8 15 15 Final Carried 15 | 5 12 15 Class Distribution -------------------- 100% | Mutant Dominant Class ---------------- Mutant | -10/Materials Mutant | -10/Subcaves Resources | -11 -10 -10 ----------- Run | Yrd Mat Sub Matter Collected 928 | 246 216 466 Remotely . | . . . Salvage Created 493 | 122 134 237 Parts 38 | 11 13 14 Haulers Intercepted 1 | . 1 . Recyclers Shooed . | . . . Parts Field Recycled . | . . . Retrieved Matter . | . . . Parts Self-Destructed . | . . . Prevented . | . . . Parts Restored . | . . . Kills | -11 -10 -10 ------- Run | Yrd Mat Sub Combat Hostiles Destroyed 12 | . 3 9 Guns 8 | . 3 5 Cannons 4 | . . 4 Classes Destroyed 7 | 2 3 2 Tunneler 3 | 3 . . Hauler 1 | . 1 . Recycler 1 | 1 . . Watcher 2 | . 2 . Swarmer 4 | . 3 1 Sentry 1 | . . 1 Subdweller 7 | . . 7 Best Kill Streak 4 | 4 3 2 Combat Bots Only 3 | . 3 2 Max Kills in Single Turn 1 | 1 1 1 Gunslinging . | . . . Exploded . | . . . Melee . | . . . Uniques/NPCs Destroyed . | . . . Combat | -11 -10 -10 -------- Run | Yrd Mat Sub Hostile Shots Fired 91 | . 10 81 Missed 28 | . 4 24 Hits 63 | . 6 57 Projectile 63 | . 6 57 Critical Strikes 1 | . . 1 Damage Taken 1563 | . 48 1515 Core 265 | . 6 259 Absorbed by Shields . | . . . Core Remaining (%) 100 | 100 . . Volleys Fired 92 | 7 22 63 Largest 2 | 2 2 2 Hottest 100 | 40 100 93 Shots Fired 145 | 14 43 88 Gun 106 | 14 42 50 Cannon 38 | . . 38 Launcher . | . . . Special 1 | . 1 . Kinetic 128 | 14 42 72 Thermal 17 | . 1 16 Explosive . | . . . Electromagnetic . | . . . Robot Hit Streak 11 | 4 6 11 Robot Miss Streak 5 | 1 5 2 Penetration Max . | . . . Secondary Targets 1 | . . 1 Max Gunslinging Chain 1 | . . 1 Shots Hit Robots 98 | 9 21 68 Core Hits 38 | 8 12 18 Critical Kills . | . . . Critical Parts Destroyed . | . . . Critical Strikes 1 | . . 1 Blast 1 | . . 1 Melee Attacks 12 | . . 12 Impact . | . . . Slashing 12 | . . 12 Piercing . | . . . Sneak Attacks . | . . . Combat Hostiles . | . . . Follow-up Attacks . | . . . Damage Inflicted 1637 | 69 178 1390 Guns 997 | 69 178 750 Cannons 403 | . . 403 Explosions . | . . . Melee 237 | . . 237 Ramming . | . . . Kinetic 1160 | 69 178 913 Thermal 240 | . . 240 Explosive . | . . . Electromagnetic . | . . . Impact . | . . . Slashing 237 | . . 237 Piercing . | . . . Highest Corruption . | . . . Average Corruption . | . . . Corruption Purged . | . . . Corruption Blocked . | . . . Overload Shots . | . . . Overflow Damage . | . . . Projectiles . | . . . Explosions . | . . . Melee . | . . . Knockbacks . | . . . Impact . | . . . Kinetic . | . . . Secondary . | . . . Self-Inflicted Damage . | . . . Shots . | . . . Rammed . | . . . Targets Rammed . | . . . Kicked . | . . . Crushed . | . . . Highest Temperature 20 | . 20 19 Average Temperature 7 | . 12 6 Received Heat Transfer 288 | . . 288 Siege Activations . | . . . Martial Activations . | . . . Shielding Activations . | . . . Robots Disrupted . | . . . Combat Hostiles . | . . . Robots Corrupted . | . . . Combat Hostiles . | . . . Parts Fried . | . . . Impact Corruptions . | . . . Robots Melted . | . . . Combat Hostiles . | . . . Parts Melted 1 | . . 1 Heat Transferred 300 | . . 300 Parts Sabotaged . | . . . Parts Stolen . | . . . Parts Stripped . | . . . Power Chain Reactions . | . . . Alert | -11 -10 -10 ------- Run | Yrd Mat Sub Maximum Alert Level . | . . . Low Security (%) 100 | 100 100 . Level 1 . | . . . Level 2 . | . . . Level 3 . | . . . Level 4 . | . . . Level 5 . | . . . High Security . | . . . Max Security . | . . . Peak Influence 70 | 10 70 . Initial . | . . . Average 9 | 1 10 . Influence Increases 161 | 20 101 40 Destroy 0b10 Robot/C 100 | . 60 40 Destroy 0b10 Robot/NC 35 | 20 15 . Destroy Leader 16 | . 16 . Successful Hack 9 | . 9 . Destroy Structure 1 | . 1 . Influence Decreases 161 | 20 101 40 Time Decay 147 | 20 101 26 Lost Part 14 | . . 14 Squads Dispatched 2 | . 2 . Investigation . | . . . Extermination . | . . . Reinforcement 2 | . 2 . Assault . | . . . Garrison . | . . . Intercept . | . . . Searches Triggered . | . . . Construction Impeded . | . . . Haulers Reinforced . | . . . Active Scanning Responses . | . . . Cargo Convoy Interrupts . | . . . Stealth | -11 -10 -10 --------- Run | Yrd Mat Sub Distress Signals 1 | . 1 . Communications Jammed . | . . . Distress Signals . | . . . Times Spotted 20 | . 10 10 Peak Tracking Total 5 | . 5 2 Tactical Retreats . | . . . Traps | -11 -10 -10 ------- Run | Yrd Mat Sub Traps Triggered 8 | . 2 6 Indirectly . | . . . Trap Hack Attempts . | . . . Triggered . | . . . Disarmed . | . . . Reprogrammed . | . . . Reused . | . . . Traps Extracted . | . . . Installed . | . . . Triggered . | . . . Most Traps Carried 1 | . . 1 Machines | -11 -10 -10 ---------- Run | Yrd Mat Sub Machines Disabled 1 | . . 1 Max in Single Turn 1 | . . 1 Machines Repaired . | . . . Machines Dismantled . | . . . Machines Sabotaged . | . . . Overloaded Fab Kills . | . . . Hacking | -11 -10 -10 --------- Run | Yrd Mat Sub Machines Accessed 2 | . 1 1 Terminals 1 | . 1 . Fabricators . | . . . Repair Stations . | . . . Recycling Units . | . . . Scanalyzers . | . . . Garrison Access . | . . . Total Hacks 3 | . 2 1 Successful 3 | . 2 1 Failed . | . . . Catastrophic . | . . . Database Lockouts . | . . . Manual 2 | . 2 . Terminals 2 | . 2 . Fabricators . | . . . Repair Stations . | . . . Recycling Units . | . . . Scanalyzers . | . . . Garrison Access . | . . . Terminal Hacks 1 | . . 1 Proto ID Catalog 1 | . . 1 Fabricator Hacks . | . . . Repair Station Hacks . | . . . Recycling Unit Hacks . | . . . Scanalyzer . | . . . Garrison Access Hacks . | . . . Unauthorized Hacks 2 | . 2 . Terminals 2 | . 2 . Botnet 1 | . 1 . Skim 1 | . 1 . Fabricators . | . . . Repair Stations . | . . . Recycling Units . | . . . Scanalyzers . | . . . Garrison Access . | . . . Data Cores Recovered . | . . . Used . | . . . Hacking Detections 1 | . 1 . Full Trace Events . | . . . Feedback Events . | . . . Feedback Blocked . | . . . Robot Schematics Acquired . | . . . Robots Built . | . . . Authchips . | . . . Time . | . . . Total Robot Build Rating . | . . . Part Schematics Acquired . | . . . Parts Built . | . . . Authchips . | . . . Time . | . . . Total Part Build Rating . | . . . Part Studies Acquired . | . . . Parts Repaired . | . . . Time . | . . . Parts Recycled . | . . . Recycled Matter . | . . . Retrieved Matter . | . . . Retrieved Components . | . . . Parts Scanalyzed . | . . . Part Schematics Acquired . | . . . Parts Damaged . | . . . Bothacking | -11 -10 -10 ------------ Run | Yrd Mat Sub Used RIF Installer . | . . . Robots Hacked . | . . . Non-combat . | . . . Combat . | . . . Robot Hacks Applied . | . . . Relay Couplers Released . | . . . Fabnet Peak Effective % . | . . . Robots Rewired . | . . . Allies Hacked . | . . . Hacks Repelled . | . . . Allies | -11 -10 -10 -------- Run | Yrd Mat Sub Total Allies . | . . . Largest Group . | . . . Highest-Rated Group . | . . . Highest-Rated Ally . | . . . Total Orders . | . . . Ally Attacks . | . . . Total Damage . | . . . Kills . | . . . Allies Corrupted . | . . . Allies Melted . | . . . Intel | -11 -10 -10 ------- Run | Yrd Mat Sub Active Infowar (turns) 1183 | 2 517 664 Seismic 1183 | 2 517 664 Robot Analysis Total . | . . . Derelict Logs Recovered 2 | . . 2 Drone Launches . | . . . Drone Recoveries . | . . . Exploration | -11 -10 -10 ------------- Run | Yrd Mat Sub Turns Passed 2346 | 82 517 1747 Spaces Moved 1450 | 49 375 1026 Core 1 | 1 . . Treads 582 | . 23 559 Legs . | . . . Wheels 867 | 48 352 467 Hover . | . . . Flight . | . . . Fastest Speed 50 | 50 95 110 Average Speed 132 | 98 115 140 Slowest Speed 240 | 100 240 160 Overloaded Moves . | . . . Propulsion Burnouts . | . . . Robots Hopped . | . . . Potential Cave-ins . | . . . Cave-ins Triggered . | . . . Exploration Rate (%) 36 | 4 52 53 Regions Visited 2 Branch Regions 1 Pre-discovered Areas . | . . . Known Exits Taken . | . . . Unknown Exits Taken 2 | 1 1 . Scrap Searched 3 | . . 3 Spaces Dug 1 | . 1 . Terrain Destroyed 2 | . 1 1 Melee . | . . . Projectile 2 | . 1 1 AOE . | . . . Terrain Rammed . | . . . Walls Destroyed . | . . . Machines Disabled . | . . . Actions | -11 -10 -10 --------- Run | Yrd Mat Sub Total 1706 | 67 421 1218 Wait 79 | . 2 77 Move 1448 | 48 374 1026 Hop . | . . . Pick Up 27 | 5 9 13 Fast Attach 17 | 7 5 5 Attach 9 | . . 9 Detach . | . . . Swap 12 | . 6 6 Drop 10 | . 3 7 Fire 92 | 7 22 63 Melee 12 | . . 12 Ram . | . . . Kick . | . . . Crush . | . . . Escape Stasis . | . . . Rewire . | . . . Trap . | . . . Miscellaneous . | . . . Route ------- -11/Scrapyard -10/Materials (discovered 4 exits: [*Mat] / [*Min x2] / *Sub) -10/Subcaves (discovered 2 exits: [*Mat x2]) History --------- Turn | Location | Event 16 | -11/Scrapyard | Discovered new exit (range 15) 83 | -11/Scrapyard | Entered Materials 176 | -10/Materials | Discovered new exit (range 7) 230 | -10/Materials | Discovered new exit (range 15) 302 | -10/Materials | Build established: Mutant 457 | -10/Materials | Discovered new exit (range 16) 578 | -10/Materials | Discovered new exit (range 10) 600 | -10/Materials | Entered Subcaves 610 | -10/Subcaves | Learned Materials garrison access intel 634 | -10/Subcaves | Shifting Twisted Machinery released Sub. Laser 635 | -10/Subcaves | Shifting Twisted Machinery released Mak. Light Armor Plating 893 | -10/Subcaves | Lost 3 parts (1p2w) 920 | -10/Subcaves | Discovered new exit (range 10) 991 | -10/Subcaves | Lost 3 parts (1n2w) 1125 | -10/Subcaves | Shifting Twisted Machinery released Sub. Monowheel 1374 | -10/Subcaves | Core integrity fell below 50% 1558 | -10/Subcaves | Core integrity fell below 20% 1787 | -10/Subcaves | Learned Materials trap positions 1794 | -10/Subcaves | Discovered new exit (range 13) 1838 | -10/Subcaves | Visited 4L-MR0's lab 1855 | -10/Subcaves | Found Gun Armor 2242 | -10/Subcaves | A swath of the cavern ceiling suddenly collapsed 2268 | -10/Subcaves | Shifting Twisted Machinery released Battle Rifle 2269 | -10/Subcaves | Shifting Twisted Machinery released Sub. Power Source 2347 | -10/Subcaves | Destroyed by XE-XG5(R) with Subdweller Machine Gun Last Messages --------------- Tower Shield Power Bank Rainbow Chip Procsplitter VL-GR5's Exoskeleton "Deathgrip" Powered Cannon 01850_ Testing Chamber breached. 01855_ Acquired Gun Armor. A swath of the cavern ceiling suddenly collapses. Battle Rifle falls loose from the Twisted Machinery. Sub. Power Source falls loose from the Twisted Machinery. 02282_ Dropped Sub. Monowheel. 02283_ Acquired Battle Rifle. 02292_ Acquired Sub. Power Source. 02319_ Subatomizers dissect the Sub. Monowheel. 02329_ Subatomizers dissect the Sub. Monowheel, destroying it. Map ----- +----------------------------------------------------+ | ???# ## #???????????????????# #??????? | | ???# ## #???????????????????# #??????? | | ???# #### #?????????????????## #??????? | | ???# ######## #????###????????## #??????? | | ???# ## #??## ##?### ##??????## #??????? | | ???# ##?# ### ##?????# ???????? | | ??## #?# #?????# ????????? | | ??# # #?## #?##### ?????????? | | ??# ## #??### ### #????????????? | | ??# ## ##????## #????????????? | | ??# #### ##???#### ## ####?????????? | | ??### ##### ## ## #?????????? | | ????# ## ### ## #?????????? | | ????# ## ##?##### #?????????? | | ????# ### #?###??#### #?????????? | | ????## ### #### ### #### ##?????????? | | ?????# ### ### "##???#??????? | | ????## ## ## # ## #??????? | | ????# ## ## """"" ?????? | | ????# ## ### #"# " " ????? | | ????##### ### #?## ;"# ## """?????? | | ????????# ##?## ?## ;##""## ##??"""??????? | | ????????# #???## #?# ;;#""# #???""??????? | | ????????# #????? #?###;## "### ?????????? | | ???###?## ####?? ?#; R;###"#?# ### "???????? | | ???# ### "" #??# ###@### ""#??##???"""??????? | | ???# """#??# "### ####""# ???????""??????? | | ???# ###### "##?# ### #### ""???????????????? | | ???# #???# ""#?#"###""" #?##""???????????????? | | ??## ##??# ""####"##" " ###?#????????????????? | | ??# #??## """"##"""""" #??????????????????? | | ??### ##??# "" " #??????????????????? | | ????#####???#### """ "" ##??????????????????? | | ???????????????### "" "" ##???????????????????? | | ?????????????????# " #####????????????????????? | | ????????????????## ""##????????????????????????? | | ????????????????#"""" "#?????????????????????????? | | ????????????????# ##""#?????????????????????????? | | ????????????????########?????????????????????????? | | ?????????????????????????????????????????????????? | | ?????????????????????????????????????????????????? | | ?????????????????????????????????????????????????? | | ?????????????????????????????????????????????????? | | ?????????????????????????????????????????????????? | | ?????????????????????????????????????????????????? | | ?????????????????????????????????????????????????? | | ?????????????????????????????????????????????????? | | ?????????????????????????????????????????????????? | | ?????????????????????????????????????????????????? | | ?????????????????????????????????????????????????? | +----------------------------------------------------+ Best States ------------- Heat Dissipation 25 Energy Generation 15 Energy Capacity 250 Matter Stores 300 Matter Capacity 300 Sight Range 16 Terrain Scan Density 10 Armor Coverage 100 Evasion (%) 41 Recoil Reduction 2 Item Schematics ----------------- None Robot Schematics ------------------ None Fabricated ------------ Nothing Repaired ---------- Nothing Studied --------- None Alien Tech Used ----------------- None Achievements -------------- None Challenges ------------ None Game ------ Seed LaserGrapheneBoomstick Manual? 0 Play Time 00:18:55 Cumulative 159.4 hours Start 2026.02.17 @ 18:50:07 End 2026.02.17 @ 19:06:10 Sessions 1 Manual Loads 0 Difficulty Rogue Special Mode None Game No. 125 Rogue 125 Adventurer 0 Explorer 0 Win Type - Total 2 Types 2/0/0/0/0/0/0/0/0/0 Lore% 66 Gallery% 62 Achievement% 46 Wizard Run 0 Options --------- Layout 1 ASCII 0 Keyboard 0 Movement Numpad Keybinds 0 Fullscreen 1 Font 18/SmallcapsGlow Map View 50x40 Zoom Use 0% Tactical HUD 1 Map Filters NONE Filters NONE Steam 1 RUN: 08101df9-45a7-4aca-bfcc-eea94cd8062b